[Event "SM-blixten 2025"]
[Site "Uppsala, Sweden"]
[Date "2025.07.03"]
[Round "4.7"]
[White "Walinder, Lars"]
[Black "Angulo Salinas, Julio Osvaldo"]
[Result "0-1"]
[TimeControl "3 min + 2 sec increment starting from move 1"]
[WhiteTitle "FM"]
[WhiteElo "2181"]
[BlackElo "1994"]

1. c4 {[%clk 00:03:03]} c6 {[%clk 00:03:03]} {[%emt 00:00:01]} 2. Nf3 {[%clk
00:03:03]} {[%emt 00:00:02]} d5 {[%clk 00:03:05]} 3. e3 {[%clk 00:03:04]}
{[%emt 00:00:01]} Nf6 {[%clk 00:03:05]} {[%emt 00:00:02]} 4. Nc3 {[%clk
00:03:04]} {[%emt 00:00:01]} e6 {[%clk 00:03:04]} {[%emt 00:00:03]} 5. b3
{[%clk 00:03:05]} Nbd7 {[%clk 00:03:05]} {[%emt 00:00:02]} 6. Bb2 {[%clk
00:03:05]} {[%emt 00:00:01]} Bd6 {[%clk 00:03:05]} {[%emt 00:00:02]} 7. Qc2
{[%clk 00:03:06]} {[%emt 00:00:01]} b6 {[%clk 00:03:00]} {[%emt 00:00:07]} 8.
Be2 {[%clk 00:03:06]} {[%emt 00:00:01]} Bb7 {[%clk 00:03:00]} {[%emt 00:00:03]}
9. O-O {[%clk 00:03:02]} {[%emt 00:00:05]} O-O {[%clk 00:03:00]} {[%emt
00:00:02]} 10. d4 {[%clk 00:03:03]} c5 {[%clk 00:02:58]} {[%emt 00:00:05]} 11.
cxd5 {[%clk 00:02:58]} {[%emt 00:00:08]} Nxd5 {[%clk 00:02:56]} {[%emt
00:00:03]} 12. Nxd5 {[%clk 00:02:53]} {[%emt 00:00:06]} Bxd5 {[%clk 00:02:50]}
{[%emt 00:00:09]} 13. Rac1 {[%clk 00:02:53]} {[%emt 00:00:02]} Rc8 {[%clk
00:02:47]} {[%emt 00:00:04]} 14. Qb1 {[%clk 00:02:54]} {[%emt 00:00:01]} Nf6
{[%clk 00:02:46]} {[%emt 00:00:03]} 15. dxc5 {[%clk 00:02:41]} {[%emt
00:00:16]} Bxc5 {[%clk 00:02:39]} {[%emt 00:00:09]} 16. Rfd1 {[%clk 00:02:41]}
{[%emt 00:00:01]} Qe7 {[%clk 00:02:39]} {[%emt 00:00:03]} 17. Ne5 {[%clk
00:02:35]} {[%emt 00:00:07]} Be4 {[%clk 00:02:32]} {[%emt 00:00:09]} 18. Bd3
{[%clk 00:02:29]} {[%emt 00:00:08]} Bxd3 {[%clk 00:02:32]} {[%emt 00:00:02]} 19.
Rxd3 {[%clk 00:02:27]} {[%emt 00:00:04]} Rfd8 {[%clk 00:02:30]} {[%emt
00:00:05]} 20. Rcd1 {[%clk 00:02:26]} {[%emt 00:00:02]} Rxd3 {[%clk 00:02:30]}
{[%emt 00:00:02]} 21. Rxd3 {[%clk 00:02:23]} {[%emt 00:00:05]} Nd5 {[%clk
00:02:27]} {[%emt 00:00:05]} 22. Qd1 {[%clk 00:02:07]} {[%emt 00:00:19]} h6
{[%clk 00:01:54]} {[%emt 00:00:35]} 23. h3 {[%clk 00:01:49]} {[%emt 00:00:19]}
Qg5 {[%clk 00:01:45]} {[%emt 00:00:12]} 24. Nf3 {[%clk 00:01:46]} {[%emt
00:00:05]} Qg6 {[%clk 00:01:41]} {[%emt 00:00:06]} 25. Ne5 {[%clk 00:01:37]}
{[%emt 00:00:10]} Qg5 {[%clk 00:01:38]} {[%emt 00:00:06]} 26. Qf3 {[%clk
00:01:25]} {[%emt 00:00:14]} f6 {[%clk 00:01:31]} {[%emt 00:00:10]} 27. Nd7
{[%clk 00:01:00]} {[%emt 00:00:27]} Nb4 {[%clk 00:00:54]} {[%emt 00:00:39]} 28.
Nxc5 {[%clk 00:00:41]} {[%emt 00:00:21]} Rxc5 {[%clk 00:00:54]} {[%emt
00:00:02]} 29. Rd8+ {[%clk 00:00:33]} {[%emt 00:00:09]} Kh7 {[%clk 00:00:55]}
{[%emt 00:00:01]} 30. Qa8 {[%clk 00:00:29]} {[%emt 00:00:07]} Qf5 {[%clk
00:00:09]} {[%emt 00:00:48]} 31. Rh8+ {[%clk 00:00:26]} {[%emt 00:00:04]} Kg6
{[%clk 00:00:11]} 32. Qe8+ {[%clk 00:00:18]} {[%emt 00:00:09]} Kg5 {[%clk
00:00:12]} 33. Kh2 {[%clk 00:00:10]} {[%emt 00:00:11]} Nd3 {[%clk 00:00:12]}
{[%emt 00:00:02]} 34. Rg8 {[%clk 00:00:09]} {[%emt 00:00:03]} g6 {[%clk
00:00:11]} {[%emt 00:00:03]} 35. g3 {[%clk 00:00:06]} {[%emt 00:00:05]} Qxf2+
{[%clk 00:00:12]} {[%emt 00:00:01]} 36. Kh1 {[%clk 00:00:07]} {[%emt 00:00:01]}
Qf3+ {[%clk 00:00:10]} {[%emt 00:00:04]} 37. Kh2 {[%clk 00:00:08]} Rc2+ {[%clk
00:00:10]} {[%emt 00:00:02]} 0-1

[Event "SM-blixten 2025"]
[Site "Uppsala, Sweden"]
[Date "2025.07.03"]
[Round "6.3"]
[White "Seo, Jung Min"]
[Black "Jonsson, Mikael"]
[Result "1/2-1/2"]
[TimeControl "3 min + 2 sec increment starting from move 1"]
[WhiteTitle "IM"]
[WhiteElo "2468"]
[BlackElo "2204"]

1. e4 {[%clk 00:03:03]} {[%emt 00:10:49]} e5 {[%clk 00:03:01]} {[%emt
00:00:03]} 2. Nf3 {[%clk 00:03:04]} Nc6 {[%clk 00:03:02]} {[%emt 00:00:03]} 3.
Bb5 {[%clk 00:03:05]} a6 {[%clk 00:03:02]} {[%emt 00:00:02]} 4. Ba4 {[%clk
00:03:06]} Nf6 {[%clk 00:03:03]} {[%emt 00:00:01]} 5. O-O {[%clk 00:03:07]}
{[%emt 00:00:02]} b5 {[%clk 00:03:04]} {[%emt 00:00:01]} 6. Bb3 {[%clk
00:03:08]} Bb7 {[%clk 00:03:05]} {[%emt 00:00:01]} 7. d3 {[%clk 00:03:05]}
{[%emt 00:00:05]} Bc5 {[%clk 00:03:04]} {[%emt 00:00:02]} 8. c3 {[%clk
00:03:02]} {[%emt 00:00:05]} d6 {[%clk 00:03:03]} {[%emt 00:00:04]} 9. Nbd2
{[%clk 00:02:55]} {[%emt 00:00:09]} O-O {[%clk 00:02:59]} {[%emt 00:00:06]} 10.
h3 {[%clk 00:02:53]} {[%emt 00:00:03]} Bb6 {[%clk 00:02:55]} {[%emt 00:00:06]}
11. Re1 {[%clk 00:02:52]} {[%emt 00:00:03]} Ne7 {[%clk 00:02:42]} {[%emt
00:00:15]} 12. Nf1 {[%clk 00:02:53]} {[%emt 00:00:01]} Ng6 {[%clk 00:02:36]}
{[%emt 00:00:08]} 13. Ng3 {[%clk 00:02:53]} {[%emt 00:00:02]} h6 {[%clk
00:02:14]} {[%emt 00:00:24]} 14. Bc2 {[%clk 00:02:52]} {[%emt 00:00:03]} Re8
{[%clk 00:02:12]} {[%emt 00:00:04]} 15. a4 {[%clk 00:02:49]} {[%emt 00:00:06]}
d5 {[%clk 00:02:01]} {[%emt 00:00:12]} 16. axb5 {[%clk 00:02:32]} {[%emt
00:00:19]} axb5 {[%clk 00:02:00]} {[%emt 00:00:03]} 17. Rxa8 {[%clk 00:02:33]}
{[%emt 00:00:01]} Qxa8 {[%clk 00:01:55]} {[%emt 00:00:07]} 18. exd5 {[%clk
00:02:17]} {[%emt 00:00:18]} Bxd5 {[%clk 00:01:45]} {[%emt 00:00:12]} 19. Ne4
{[%clk 00:02:09]} {[%emt 00:00:10]} Nxe4 {[%clk 00:01:22]} {[%emt 00:00:26]} 20.
dxe4 {[%clk 00:02:09]} {[%emt 00:00:01]} Be6 {[%clk 00:01:21]} {[%emt
00:00:03]} 21. Be3 {[%clk 00:02:06]} {[%emt 00:00:05]} Rd8 {[%clk 00:01:12]}
{[%emt 00:00:11]} 22. Qc1 {[%clk 00:02:06]} {[%emt 00:00:03]} Bxe3 23. Qxe3
{[%clk 00:02:05]} Qa2 {[%clk 00:01:00]} {[%emt 00:00:10]} 24. Qc1 {[%clk
00:01:53]} {[%emt 00:00:14]} f6 {[%clk 00:00:34]} {[%emt 00:00:29]} 25. Kh2
{[%clk 00:01:47]} {[%emt 00:00:07]} Nf4 {[%clk 00:00:34]} {[%emt 00:00:02]} 26.
Ng1 {[%clk 00:01:27]} {[%emt 00:00:23]} Bc4 {[%clk 00:00:23]} {[%emt 00:00:13]}
27. Bb1 {[%clk 00:01:16]} {[%emt 00:00:12]} Qa6 {[%clk 00:00:21]} {[%emt
00:00:03]} 28. g3 {[%clk 00:01:08]} {[%emt 00:00:11]} Nd3 {[%clk 00:00:19]}
{[%emt 00:00:04]} 29. Qd2 {[%clk 00:00:57]} {[%emt 00:00:13]} Rd6 {[%clk
00:00:12]} {[%emt 00:00:09]} 30. Bxd3 {[%clk 00:00:35]} {[%emt 00:00:24]} Rxd3
{[%clk 00:00:12]} {[%emt 00:00:02]} 31. Qc1 {[%clk 00:00:29]} {[%emt 00:00:08]}
Qd6 {[%clk 00:00:13]} {[%emt 00:00:02]} 32. Kg2 {[%clk 00:00:29]} {[%emt
00:00:01]} Rd2 {[%clk 00:00:13]} {[%emt 00:00:02]} 33. Nf3 {[%clk 00:00:28]}
{[%emt 00:00:03]} Rd3 {[%clk 00:00:13]} {[%emt 00:00:02]} 34. Qc2 {[%clk
00:00:21]} {[%emt 00:00:09]} Be6 {[%clk 00:00:13]} {[%emt 00:00:02]} 35. Qe2
{[%clk 00:00:14]} {[%emt 00:00:09]} Qd7 {[%emt 00:00:02]} 36. Rh1 {[%clk
00:00:11]} {[%emt 00:00:04]} Rd6 {[%clk 00:00:13]} {[%emt 00:00:03]} 37. Qe3
{[%clk 00:00:11]} {[%emt 00:00:02]} c6 {[%clk 00:00:13]} {[%emt 00:00:03]} 38.
Qe2 {[%clk 00:00:07]} {[%emt 00:00:05]} Qd8 {[%clk 00:00:12]} {[%emt 00:00:03]}
39. Qe3 {[%clk 00:00:08]} {[%emt 00:00:01]} Qd7 {[%clk 00:00:13]} 40. Qe2
{[%clk 00:00:07]} {[%emt 00:00:03]} Qd8 {[%clk 00:00:13]} {[%emt 00:00:03]}
1/2-1/2

[Event "SM-blixten 2025"]
[Site "Uppsala, Sweden"]
[Date "2025.07.03"]
[Round "7.9"]
[White "Angulo Salinas, Julio Osvaldo"]
[Black "Malm Lindberg, Henrik"]
[Result "0-1"]
[TimeControl "3 min + 2 sec increment starting from move 1"]
[WhiteElo "1994"]
[BlackElo "2113"]

1. e4 {[%clk 00:03:03]} c5 {[%clk 00:03:03]} {[%emt 00:00:02]} 2. Nf3 {[%clk
00:03:03]} {[%emt 00:00:01]} e6 {[%clk 00:03:03]} {[%emt 00:00:02]} 3. c3
{[%clk 00:03:04]} {[%emt 00:00:02]} Nf6 {[%clk 00:03:04]} {[%emt 00:00:02]} 4.
e5 {[%clk 00:02:57]} {[%emt 00:00:08]} Nd5 {[%clk 00:03:04]} {[%emt 00:00:02]}
5. d4 {[%clk 00:02:53]} {[%emt 00:00:06]} cxd4 {[%clk 00:03:04]} {[%emt
00:00:02]} 6. cxd4 {[%clk 00:02:50]} {[%emt 00:00:05]} b6 {[%clk 00:03:04]}
{[%emt 00:00:02]} 7. Nc3 {[%clk 00:02:47]} {[%emt 00:00:04]} Nxc3 {[%clk
00:03:04]} {[%emt 00:00:02]} 8. bxc3 {[%clk 00:02:48]} {[%emt 00:00:01]} Qc7
{[%clk 00:03:05]} 9. Bd2 {[%clk 00:02:45]} {[%emt 00:00:06]} Bb7 {[%clk
00:03:06]} {[%emt 00:00:01]} 10. Bd3 {[%clk 00:02:42]} {[%emt 00:00:05]} d6
{[%clk 00:03:07]} {[%emt 00:00:01]} 11. O-O {[%clk 00:02:37]} {[%emt 00:00:07]}
Nd7 {[%clk 00:03:08]} {[%emt 00:00:01]} 12. Re1 {[%clk 00:02:29]} {[%emt
00:00:10]} dxe5 {[%clk 00:03:05]} {[%emt 00:00:04]} 13. Nxe5 {[%clk 00:02:29]}
{[%emt 00:00:02]} Nxe5 {[%clk 00:03:02]} {[%emt 00:00:06]} 14. dxe5 {[%clk
00:02:29]} {[%emt 00:00:01]} O-O-O {[%clk 00:02:40]} {[%emt 00:00:25]} 15. Bg5
{[%clk 00:01:38]} {[%emt 00:00:52]} Be7 {[%clk 00:02:41]} {[%emt 00:00:02]} 16.
Bxe7 {[%clk 00:01:38]} {[%emt 00:00:02]} Qxe7 {[%clk 00:02:42]} {[%emt
00:00:01]} 17. Qe2 {[%clk 00:01:36]} {[%emt 00:00:04]} Kb8 {[%clk 00:02:31]}
{[%emt 00:00:12]} 18. Rad1 {[%clk 00:01:31]} {[%emt 00:00:07]} Rd7 {[%clk
00:02:07]} {[%emt 00:00:26]} 19. Be4 {[%clk 00:01:24]} {[%emt 00:00:09]} Bxe4
{[%clk 00:01:58]} {[%emt 00:00:12]} 20. Qxe4 {[%clk 00:01:25]} Rhd8 {[%clk
00:01:56]} {[%emt 00:00:04]} 21. Rxd7 {[%clk 00:01:25]} {[%emt 00:00:02]} Qxd7
{[%clk 00:01:56]} {[%emt 00:00:02]} 22. Qxh7 {[%clk 00:01:18]} {[%emt
00:00:09]} Qd2 {[%clk 00:01:48]} {[%emt 00:00:10]} 23. Rf1 {[%clk 00:01:19]}
{[%emt 00:00:02]} Qxc3 {[%clk 00:00:50]} {[%emt 00:01:00]} 24. Qxg7 {[%clk
00:01:18]} {[%emt 00:00:02]} Rd7 {[%clk 00:00:49]} {[%emt 00:00:03]} 25. Qh8+
{[%clk 00:01:03]} {[%emt 00:00:17]} Kb7 {[%clk 00:00:48]} {[%emt 00:00:04]} 26.
Qh5 {[%clk 00:01:03]} {[%emt 00:00:01]} Qc4 {[%clk 00:00:28]} {[%emt 00:00:21]}
27. Qf3+ {[%clk 00:01:01]} {[%emt 00:00:04]} Ka6 {[%clk 00:00:17]} {[%emt
00:00:14]} 28. Qa3+ {[%clk 00:01:02]} {[%emt 00:00:01]} Kb7 {[%clk 00:00:18]}
{[%emt 00:00:01]} 29. Rc1 {[%clk 00:01:00]} {[%emt 00:00:04]} Qe2 {[%clk
00:00:11]} {[%emt 00:00:09]} 30. Qc3 {[%clk 00:00:56]} {[%emt 00:00:06]} 0-1

[Event "SM-blixten 2025"]
[Site "Uppsala, Sweden"]
[Date "2025.07.03"]
[Round "9.5"]
[White "Nygren, Kim"]
[Black "Carlsson, Ludvig"]
[Result "1-0"]
[TimeControl "3 min + 2 sec increment starting from move 1"]
[WhiteTitle "CM"]
[BlackTitle "IM"]
[WhiteElo "2173"]
[BlackElo "2386"]

1. d4 {[%clk 00:03:02]} {[%emt 00:00:01]} a6 {[%clk 00:03:04]} {[%emt
00:00:01]} 2. Nd2 {[%clk 00:03:02]} {[%emt 00:00:02]} d5 {[%clk 00:03:03]}
{[%emt 00:00:03]} 3. e4 {[%clk 00:03:02]} {[%emt 00:00:01]} c6 {[%clk
00:03:04]} 4. c3 {[%clk 00:03:02]} {[%emt 00:00:03]} h6 {[%clk 00:03:01]}
{[%emt 00:00:04]} 5. Bd3 {[%clk 00:03:02]} {[%emt 00:00:01]} dxe4 {[%clk
00:02:54]} {[%emt 00:00:10]} 6. Nxe4 {[%clk 00:03:03]} {[%emt 00:00:01]} Nf6
{[%clk 00:02:55]} {[%emt 00:00:01]} 7. Nxf6+ {[%clk 00:03:03]} {[%emt
00:00:03]} exf6 {[%clk 00:02:55]} {[%emt 00:00:01]} 8. Ne2 {[%clk 00:03:03]}
{[%emt 00:00:02]} Bd6 {[%clk 00:02:56]} {[%emt 00:00:01]} 9. Qc2 {[%clk
00:03:04]} {[%emt 00:00:01]} b5 {[%clk 00:02:50]} {[%emt 00:00:08]} 10. Be3
{[%clk 00:03:03]} {[%emt 00:00:02]} Be6 {[%clk 00:02:51]} {[%emt 00:00:02]} 11.
Nf4 {[%clk 00:03:00]} {[%emt 00:00:06]} Bxf4 {[%clk 00:02:47]} {[%emt
00:00:05]} 12. Bxf4 {[%clk 00:03:01]} {[%emt 00:00:01]} Nd7 {[%clk 00:02:46]}
{[%emt 00:00:04]} 13. O-O {[%clk 00:02:52]} {[%emt 00:00:11]} O-O {[%clk
00:02:44]} {[%emt 00:00:04]} 14. Rfe1 {[%clk 00:02:52]} {[%emt 00:00:01]} Re8
{[%clk 00:02:45]} {[%emt 00:00:02]} 15. Re3 {[%clk 00:02:43]} {[%emt 00:00:10]}
Nb6 {[%clk 00:02:41]} {[%emt 00:00:06]} 16. Bxh6 {[%clk 00:02:36]} {[%emt
00:00:09]} gxh6 {[%clk 00:02:39]} {[%emt 00:00:04]} 17. Rg3+ {[%clk 00:02:35]}
{[%emt 00:00:03]} Kf8 {[%clk 00:02:39]} {[%emt 00:00:02]} 18. Qd2 {[%clk
00:02:36]} {[%emt 00:00:01]} Qd6 {[%clk 00:02:39]} {[%emt 00:00:02]} 19. Qxh6+
{[%clk 00:02:34]} {[%emt 00:00:04]} Ke7 {[%clk 00:02:40]} 20. Re1 {[%clk
00:02:18]} {[%emt 00:00:17]} Rh8 {[%clk 00:02:40]} {[%emt 00:00:02]} 21. Bh7
{[%clk 00:01:57]} {[%emt 00:00:24]} Nd5 {[%clk 00:02:36]} {[%emt 00:00:06]} 22.
Rg7 {[%clk 00:01:52]} {[%emt 00:00:07]} Kd7 {[%clk 00:02:31]} {[%emt 00:00:07]}
23. g3 {[%clk 00:01:40]} {[%emt 00:00:14]} Kc7 {[%clk 00:02:32]} 24. b3 {[%clk
00:01:27]} {[%emt 00:00:14]} Nxc3 {[%clk 00:02:32]} {[%emt 00:00:02]} 25. Qxf6
{[%clk 00:01:28]} {[%emt 00:00:01]} Nd5 {[%clk 00:02:30]} {[%emt 00:00:04]} 26.
Qxe6 {[%clk 00:01:25]} {[%emt 00:00:05]} Qxe6 {[%clk 00:02:04]} {[%emt
00:00:28]} 27. Rxe6 {[%clk 00:01:26]} {[%emt 00:00:01]} Kb6 {[%clk 00:01:30]}
{[%emt 00:00:37]} 28. Rxf7 {[%clk 00:01:23]} {[%emt 00:00:05]} Rae8 {[%clk
00:01:27]} {[%emt 00:00:04]} 29. Rxe8 {[%clk 00:01:12]} {[%emt 00:00:13]} Rxe8
{[%clk 00:01:28]} {[%emt 00:00:02]} 30. h4 {[%clk 00:01:09]} {[%emt 00:00:04]}
Nc3 {[%clk 00:01:28]} {[%emt 00:00:02]} 31. Rd7 {[%clk 00:00:47]} {[%emt
00:00:24]} b4 {[%clk 00:01:24]} {[%emt 00:00:07]} 32. h5 {[%clk 00:00:40]}
{[%emt 00:00:08]} Nxa2 {[%clk 00:01:23]} {[%emt 00:00:03]} 33. Bg6 {[%clk
00:00:36]} {[%emt 00:00:07]} Re6 {[%clk 00:01:21]} {[%emt 00:00:03]} 34. f4
{[%clk 00:00:29]} {[%emt 00:00:09]} Nc3 {[%clk 00:01:15]} {[%emt 00:00:08]} 35.
f5 {[%clk 00:00:30]} Re2 {[%clk 00:01:14]} {[%emt 00:00:02]} 36. h6 {[%clk
00:00:28]} {[%emt 00:00:05]} Ne4 {[%clk 00:01:14]} {[%emt 00:00:01]} 37. h7
{[%clk 00:00:23]} {[%emt 00:00:08]} Re1+ {[%clk 00:01:02]} {[%emt 00:00:14]} 38.
Kg2 {[%clk 00:00:24]} Re2+ {[%clk 00:00:58]} {[%emt 00:00:07]} 39. Kf3 {[%clk
00:00:22]} {[%emt 00:00:04]} Re1 {[%clk 00:00:56]} {[%emt 00:00:04]} 40. h8=Q
{[%clk 00:00:15]} {[%emt 00:00:09]} Nd2+ {[%clk 00:00:57]} {[%emt 00:00:02]} 41.
Kf2 {[%emt 00:00:16]} 1-0

[Event "SM-blixten 2025"]
[Site "Uppsala, Sweden"]
[Date "2025.07.03"]
[Round "11.1"]
[White "Seo, Jung Min"]
[Black "Galperin, Platon"]
[Result "0-1"]
[TimeControl "3 min + 2 sec increment starting from move 1"]
[WhiteTitle "IM"]
[BlackTitle "GM"]
[WhiteElo "2468"]
[BlackElo "2506"]

1. Nf3 {[%clk 00:03:04]} {[%emt 00:14:32]} d5 {[%clk 00:03:03]} {[%emt
00:00:02]} 2. g3 {[%clk 00:03:04]} {[%emt 00:00:02]} c5 {[%clk 00:03:00]}
{[%emt 00:00:03]} 3. Bg2 {[%clk 00:03:05]} {[%emt 00:00:02]} Nc6 {[%clk
00:03:01]} {[%emt 00:00:01]} 4. d4 {[%clk 00:03:03]} {[%emt 00:00:05]} e6
{[%clk 00:03:01]} {[%emt 00:00:01]} 5. O-O {[%clk 00:03:03]} {[%emt 00:00:03]}
cxd4 {[%clk 00:03:01]} {[%emt 00:00:01]} 6. Nxd4 {[%clk 00:03:04]} {[%emt
00:00:02]} Nge7 {[%clk 00:03:01]} {[%emt 00:00:01]} 7. Nxc6 {[%clk 00:02:53]}
{[%emt 00:00:13]} Nxc6 {[%clk 00:03:01]} {[%emt 00:00:02]} 8. c4 {[%clk
00:02:51]} {[%emt 00:00:05]} d4 {[%clk 00:03:01]} {[%emt 00:00:01]} 9. e3
{[%clk 00:02:51]} {[%emt 00:00:02]} Bc5 {[%clk 00:03:01]} {[%emt 00:00:02]} 10.
exd4 {[%clk 00:02:51]} {[%emt 00:00:03]} Bxd4 {[%clk 00:03:01]} {[%emt
00:00:01]} 11. Nd2 {[%clk 00:02:49]} {[%emt 00:00:04]} e5 {[%clk 00:02:52]}
{[%emt 00:00:11]} 12. Nb3 {[%clk 00:02:50]} {[%emt 00:00:01]} O-O {[%clk
00:02:46]} {[%emt 00:00:08]} 13. Nxd4 {[%clk 00:02:50]} {[%emt 00:00:02]} exd4
{[%clk 00:02:46]} {[%emt 00:00:02]} 14. b3 {[%clk 00:02:47]} {[%emt 00:00:06]}
Bf5 {[%clk 00:02:43]} {[%emt 00:00:05]} 15. Bb2 {[%clk 00:02:46]} {[%emt
00:00:03]} d3 {[%clk 00:02:38]} {[%emt 00:00:07]} 16. Qd2 {[%clk 00:02:45]}
{[%emt 00:00:03]} Qd7 {[%clk 00:02:37]} {[%emt 00:00:02]} 17. Rfe1 {[%clk
00:02:38]} {[%emt 00:00:09]} Rfe8 {[%clk 00:02:23]} {[%emt 00:00:17]} 18. Qc3
{[%clk 00:02:38]} {[%emt 00:00:01]} f6 {[%clk 00:02:18]} {[%emt 00:00:07]} 19.
Bd5+ {[%clk 00:02:38]} {[%emt 00:00:02]} Kh8 {[%clk 00:02:13]} {[%emt
00:00:07]} 20. Qd2 {[%clk 00:02:28]} {[%emt 00:00:12]} Ne7 {[%clk 00:01:47]}
{[%emt 00:00:28]} 21. Bg2 {[%clk 00:02:29]} {[%emt 00:00:01]} Nc6 {[%clk
00:01:28]} {[%emt 00:00:21]} 22. b4 {[%clk 00:02:01]} {[%emt 00:00:30]} Rac8
{[%clk 00:01:24]} {[%emt 00:00:06]} 23. b5 {[%clk 00:01:37]} {[%emt 00:00:26]}
Ne7 {[%clk 00:00:53]} {[%emt 00:00:33]} 24. Rac1 {[%clk 00:01:34]} {[%emt
00:00:05]} Ng6 {[%clk 00:00:34]} {[%emt 00:00:21]} 25. Bd5 {[%clk 00:01:33]}
{[%emt 00:00:04]} Ne7 {[%clk 00:00:34]} {[%emt 00:00:01]} 26. Be4 {[%clk
00:01:15]} {[%emt 00:00:20]} Bxe4 {[%clk 00:00:31]} {[%emt 00:00:06]} 27. Rxe4
{[%clk 00:01:16]} {[%emt 00:00:01]} Nf5 {[%clk 00:00:32]} 28. Rxe8+ {[%clk
00:01:13]} {[%emt 00:00:05]} Rxe8 {[%clk 00:00:33]} {[%emt 00:00:01]} 29. Rd1
{[%clk 00:01:10]} {[%emt 00:00:05]} Rd8 {[%clk 00:00:35]} {[%emt 00:00:01]} 30.
Qf4 {[%clk 00:01:02]} {[%emt 00:00:10]} h6 {[%clk 00:00:26]} {[%emt 00:00:11]}
31. a4 {[%clk 00:01:02]} {[%emt 00:00:02]} b6 {[%clk 00:00:17]} {[%emt
00:00:10]} 32. Qf3 {[%clk 00:00:50]} {[%emt 00:00:14]} Nd4 {[%clk 00:00:11]}
{[%emt 00:00:08]} 33. Qe4 {[%clk 00:00:31]} {[%emt 00:00:22]} f5 {[%clk
00:00:12]} 34. Qe3 {[%clk 00:00:19]} {[%emt 00:00:14]} f4 {[%clk 00:00:13]} 35.
Qe4 {[%clk 00:00:14]} {[%emt 00:00:07]} f3 {[%clk 00:00:14]} {[%emt 00:00:01]}
36. Bxd4 {[%clk 00:00:10]} {[%emt 00:00:06]} Qxd4 {[%clk 00:00:13]} {[%emt
00:00:03]} 37. Qxf3 {[%clk 00:00:11]} {[%emt 00:00:02]} Qxc4 {[%clk 00:00:12]}
{[%emt 00:00:02]} 38. Qc6 {[%clk 00:00:04]} {[%emt 00:00:09]} Qxa4 {[%clk
00:00:10]} {[%emt 00:00:05]} 39. Rd2 {[%clk 00:00:05]} Qa1+ {[%clk 00:00:05]}
{[%emt 00:00:07]} 40. Kg2 {[%clk 00:00:07]} Qe1 {[%clk 00:00:06]} {[%emt
00:00:01]} 41. Qc3 {[%clk 00:00:07]} {[%emt 00:00:03]} Qe4+ {[%clk 00:00:06]}
{[%emt 00:00:02]} 42. Kg1 {[%clk 00:00:06]} {[%emt 00:00:03]} Qd5 {[%clk
00:00:05]} {[%emt 00:00:03]} 43. Qb4 {[%clk 00:00:07]} Rc8 {[%clk 00:00:06]}
{[%emt 00:00:01]} 44. Rd1 {[%clk 00:00:08]} Rc5 {[%clk 00:00:04]} {[%emt
00:00:04]} 45. Rb1 {[%clk 00:00:08]} {[%emt 00:00:01]} d2 {[%clk 00:00:05]}
{[%emt 00:00:02]} 46. Rd1 {[%clk 00:00:09]} Rc1 {[%clk 00:00:05]} {[%emt
00:00:01]} 0-1

[Event "SM-blixten 2025"]
[Site "Uppsala, Sweden"]
[Date "2025.07.03"]
[Round "1.6"]
[White "Malmstig, Erik"]
[Black "Myrberg, Rickard"]
[Result "1-0"]
[TimeControl "3 min + 2 sec increment starting from move 1"]
[WhiteTitle "FM"]
[WhiteElo "2231"]
[BlackElo "1825"]

1. d4 {[%clk 00:03:02]} {[%emt 00:00:02]} Nf6 {[%clk 00:03:02]} {[%emt
00:00:02]} 2. Bg5 {[%clk 00:03:02]} {[%emt 00:00:01]} h6 {[%clk 00:02:54]}
{[%emt 00:00:11]} 3. Bxf6 {[%clk 00:03:02]} {[%emt 00:00:02]} exf6 {[%clk
00:02:52]} {[%emt 00:00:04]} 4. e4 {[%clk 00:03:01]} {[%emt 00:00:03]} g6
{[%clk 00:02:52]} {[%emt 00:00:02]} 5. Bd3 {[%clk 00:03:01]} {[%emt 00:00:02]}
Bg7 {[%clk 00:02:52]} {[%emt 00:00:02]} 6. Nc3 {[%clk 00:03:02]} {[%emt
00:00:02]} O-O {[%clk 00:02:52]} {[%emt 00:00:02]} 7. Nf3 {[%clk 00:02:55]}
{[%emt 00:00:08]} d6 {[%clk 00:02:52]} {[%emt 00:00:02]} 8. Qd2 {[%clk
00:02:53]} {[%emt 00:00:03]} b6 {[%clk 00:02:40]} {[%emt 00:00:15]} 9. O-O-O
{[%clk 00:02:52]} {[%emt 00:00:03]} c5 {[%clk 00:02:22]} {[%emt 00:00:20]} 10.
Kb1 {[%clk 00:02:47]} {[%emt 00:00:06]} a6 {[%clk 00:02:15]} {[%emt 00:00:10]}
11. h4 {[%clk 00:02:38]} {[%emt 00:00:10]} h5 {[%clk 00:02:15]} {[%emt
00:00:02]} 12. Nd5 {[%clk 00:02:26]} {[%emt 00:00:15]} b5 {[%clk 00:02:10]}
{[%emt 00:00:07]} 13. c4 {[%clk 00:02:06]} {[%emt 00:00:22]} bxc4 {[%clk
00:02:05]} {[%emt 00:00:07]} 14. Bxc4 {[%clk 00:02:07]} Be6 {[%clk 00:01:57]}
{[%emt 00:00:09]} 15. Qf4 {[%clk 00:01:50]} {[%emt 00:00:18]} Nc6 {[%clk
00:01:46]} {[%emt 00:00:13]} 16. dxc5 {[%clk 00:01:42]} {[%emt 00:00:11]} Ne5
{[%clk 00:01:39]} {[%emt 00:00:10]} 17. Nxe5 {[%clk 00:01:33]} {[%emt
00:00:10]} fxe5 {[%clk 00:01:28]} {[%emt 00:00:12]} 18. Qe3 {[%clk 00:01:27]}
{[%emt 00:00:08]} Qa5 {[%clk 00:01:11]} {[%emt 00:00:19]} 19. Ne7+ {[%clk
00:01:03]} {[%emt 00:00:26]} Kh7 {[%clk 00:01:04]} {[%emt 00:00:09]} 20. Bxe6
{[%clk 00:00:45]} {[%emt 00:00:21]} fxe6 {[%clk 00:01:04]} {[%emt 00:00:02]} 21.
Rxd6 {[%clk 00:00:32]} {[%emt 00:00:15]} Bh6 {[%clk 00:00:56]} {[%emt
00:00:10]} 22. Qg3 {[%clk 00:00:28]} {[%emt 00:00:06]} Rf6 {[%clk 00:00:42]}
{[%emt 00:00:15]} 23. Rd7 {[%clk 00:00:16]} {[%emt 00:00:14]} Bg7 {[%clk
00:00:31]} {[%emt 00:00:13]} 24. c6 {[%clk 00:00:15]} {[%emt 00:00:03]} Qa4
{[%clk 00:00:17]} {[%emt 00:00:16]} 25. Qd3 {[%clk 00:00:14]} {[%emt 00:00:03]}
Rxf2 {[%clk 00:00:08]} {[%emt 00:00:12]} 26. Rc1 {[%clk 00:00:15]} 1-0